fUSD/lending_fUSD_20250113
["ID","MTS","AMOUNT","RATE_DAILY","PERIOD"]
[348733238,1736760635084,-500.0,9.999e-05,2]
[348733239,1736760635093,-500.0,9.999e-05,2]
[348733240,1736760635102,-500.0,9.999e-05,2]
[348733241,1736760635111,-500.0,9.999e-05,2]
[348733242,1736760635120,-500.0,9.999e-05,2]
[348733243,1736760635129,-582.55901154,9.999e-05,2]
[348733244,1736760635156,-502.53,9.999e-05,2]
[348733245,1736760635166,-500.0,9.999e-05,2]
[348733246,1736760635175,-500.0,9.999e-05,2]
[348733247,1736760635185,-500.0,9.999e-05,2]
[348733248,1736760635194,-500.0,9.999e-05,2]
[348733249,1736760635203,-460.60890222,9.999e-05,2]
[348733250,1736760635212,-500.0,9.999e-05,2]
[348733251,1736760635221,-500.0,9.999e-05,2]
[348733252,1736760635231,-218.94103379,9.999e-05,2]
[348733253,1736760635240,-500.0,9.999e-05,2]
[348733254,1736760635250,-500.0,9.999e-05,2]
[348733255,1736760635259,-500.0,9.999e-05,2]
[348733256,1736760635269,-500.0,9.999e-05,2]
[348733257,1736760635278,-500.0,9.999e-05,2]
[348733258,1736760635287,-332.42620687,9.999e-05,2]
[348733259,1736760635297,-500.0,9.999e-05,2]
[348733260,1736760635306,-500.0,9.999e-05,2]
[348733261,1736760635316,-529.51,9.999e-05,2]
[348733262,1736760635325,-500.0,9.999e-05,2]
[348733263,1736760635334,-500.0,9.999e-05,2]
[348733264,1736760635343,-500.0,9.999e-05,2]
[348733265,1736760635352,-500.0,9.999e-05,2]
[348733266,1736760635361,-500.0,9.999e-05,2]
[348733267,1736760635371,-500.0,9.999e-05,2]
[348733268,1736760635380,-500.0,9.999e-05,2]
[348733269,1736760635389,-500.0,9.999e-05,2]
[348733270,1736760635398,-500.0,9.999e-05,2]
[348733271,1736760635408,-500.0,9.999e-05,2]
[348733272,1736760635417,-500.0,9.999e-05,2]
[348733273,1736760635427,-500.0,9.999e-05,2]
[348733274,1736760635436,-1908.03,9.999e-05,2]
[348733275,1736760635445,-516.9369737,9.999e-05,2]
[348733276,1736760635454,-500.0,9.999e-05,2]
[348733277,1736760635463,-411.78521684,9.999e-05,2]
[348733278,1736760635472,-500.0,9.999e-05,2]
[348733279,1736760635481,-500.0,9.999e-05,2]
[348733280,1736760635491,-500.0,9.999e-05,2]
[348733281,1736760635500,-500.0,9.999e-05,2]
[348733282,1736760635509,-500.0,9.999e-05,2]
[348733283,1736760635518,-1855.28,9.999e-05,2]
[348733284,1736760635528,-500.0,9.999e-05,2]
[348733285,1736760635537,-500.0,9.999e-05,2]
[348733286,1736760635546,-500.0,9.999e-05,2]
[348733287,1736760635555,-500.0,9.999e-05,2]
[348733288,1736760635565,-500.0,9.999e-05,2]
[348733289,1736760635574,-500.0,9.999e-05,2]
[348733290,1736760635583,-998.88,9.999e-05,2]
[348733291,1736760635592,-500.0,9.999e-05,2]
[348733292,1736760635602,-500.0,9.999e-05,2]
[348733293,1736760635611,-500.0,9.999e-05,2]
[348733294,1736760635620,-500.0,9.999e-05,2]
[348733295,1736760635630,-500.0,9.999e-05,2]
[348733296,1736760635654,-1906.65,9.999e-05,2]
[348733297,1736760635664,-500.0,9.999e-05,2]
[348733298,1736760635673,-66801.77918875,9.999e-05,2]
[348733299,1736760635701,-712.02367317,9.999e-05,2]
[348733302,1736760638167,-1409.6,9.531e-05,2]
[348733303,1736760638177,-1409.6,9.805e-05,2]
[348733304,1736760638187,-77.19516468,9.806e-05,2]
[348733305,1736760638227,-911.86483532,9.806e-05,2]
[348733306,1736760638238,-500.0,9.987e-05,2]
[348733307,1736760638248,-500.0,9.987e-05,2]
[348733308,1736760638257,-500.0,9.987e-05,2]
[348733309,1736760638267,-11337.34931976,9.999e-05,2]
[348733310,1736760638278,-274.06421711,9.999e-05,2]
[348733311,1736760638289,-13318.76281526,9.999e-05,2]
[348733312,1736760638301,-918.803945,9.999e-05,2]
[348733313,1736760638351,-4886.43238103,9.999e-05,2]
[348733314,1736760638360,-500.0,9.999e-05,2]
[348733315,1736760638370,-410.90333889,9.999e-05,2]
[348733316,1736760638381,-500.0,9.999e-05,2]
[348733317,1736760638391,-3041.08,9.999e-05,2]
[348733318,1736760638400,-500.0,9.999e-05,2]
[348733319,1736760638410,-500.0,9.999e-05,2]
[348733320,1736760638419,-500.0,9.999e-05,2]
[348733321,1736760638428,-500.0,9.999e-05,2]
[348733322,1736760638438,-629.98,9.999e-05,2]
[348733323,1736760638447,-155.47634214,9.999e-05,2]
[348733324,1736760638457,-350.42398846,9.999e-05,2]
[348733325,1736760638467,-597.56,9.999e-05,2]
[348733326,1736760638477,-607.83,9.999e-05,2]
[348733327,1736760638486,-500.0,9.999e-05,2]
[348733328,1736760638496,-500.0,9.999e-05,2]
[348733329,1736760638505,-500.0,9.999e-05,2]
[348733330,1736760638515,-183.141693,9.999e-05,2]
[348733331,1736760638524,-182.0,0.0001,2]
[348733332,1736760638533,-520.58004496,0.0001,2]
[348733333,1736760638542,-11069139.81893692,0.0001,2]
[348733334,1736760638555,-902.63081299,0.0001,2]
[348733335,1736760638567,-9074.67854847,0.0001,2]
[348733336,1736760638578,-11645.20747918,0.0001,2]
[348733337,1736760638589,-1517.76989013,0.0001,2]
[348733338,1736760638600,-1402.64068219,0.0001,2]
[348733342,1736760640448,-501.23001669,9.987e-05,2]
[348733343,1736760640458,-500.0,9.987e-05,2]
[348733344,1736760640468,-5672.73903247,0.0001,2]
[348733345,1736760640480,-193129.40211064,0.0001,2]
[348733348,1736760640507,-2792.33549505,0.0001,2]
[348733354,1736760640569,-650.82764576,0.0001,2]
[348733362,1736760640629,-156903.5163519,0.0001,2]
[348733369,1736760640689,-4919.72166071,0.0001,2]
[348733371,1736760640701,-1939.68789062,0.0001,2]
[348733373,1736760640712,-931.57944,0.0001,2]
[348733375,1736760640723,-544.01455584,0.0001,2]
[348733377,1736760640734,-1049.41419005,0.0001,2]
[348733379,1736760640745,-1685.77121904,0.0001,2]
[348733381,1736760640756,-1007.52312096,0.0001,2]
[348733460,1736760643347,-1302.1840501,9.805e-05,2]
[348733461,1736760643358,-418.8259499,9.805e-05,2]
[348733462,1736760643367,-209.3860461,9.987e-05,2]
[348733463,1736760643378,-290.6139539,9.987e-05,2]
[348733464,1736760643388,-9103.76386991,0.0001,2]
[348733465,1736760643407,-500.0,0.0001,2]
[348733467,1736760643467,-3476.35750359,0.0001,2]
[348733468,1736760643527,-37079.6228439,0.0001,2]
[348733469,1736760643539,-9000.0,0.0001,2]
[348733470,1736760643645,-385.29491524,9.999e-05,2]
[348733471,1736760643655,-448787.35838919,0.0001,2]
[348733472,1736760643705,-14208.67603151,0.0001,2]
[348733473,1736760643717,-70263.39999603,0.0001,2]
[348733705,1736760646230,-780.12,9.531e-05,2]
[348733707,1736760646240,-500.0,9.532e-05,2]
[348733709,1736760646250,-500.0,9.806e-05,2]
[348733712,1736760646260,-500.0,9.987e-05,2]
[348733714,1736760646270,-500.0,9.987e-05,2]
[348733716,1736760646279,-500.0,9.987e-05,2]
[348733717,1736760646289,-1702.04487961,0.0001,2]
[348733720,1736760646305,-1922.39950428,0.0001,2]
[348733722,1736760646316,-9761.9736,0.0001,2]
[348733728,1736760646364,-4663.3196001,0.0001,2]
[348733730,1736760646374,-18641.6,0.0001,2]
[348733733,1736760646387,-136957.424645,0.0001,2]
[348733737,1736760646423,-840.72193795,0.0001,2]
[348733746,1736760646500,-449.9794775,0.0001,2]
[348733749,1736760646512,-189601.30935752,0.0001,2]
[348733821,1736760786165,2541.0,0.00023,120]
[348733823,1736761133726,1069.47,8.219e-05,2]
[348733824,1736761210078,279.15558339,9.987e-05,7]
[348733825,1736761221737,500.0,0.00023,120]
[348733826,1736761307226,500.0,8e-05,2]
[348733827,1736761338450,-472.93,8.995e-05,2]
[348733828,1736761492676,-250.0,8.996e-05,2]
[348734660,1736761831541,-250.0,9.002e-05,2]
[348734661,1736761831550,-316.6937822,9.002e-05,2]
[348734662,1736761831562,-683.3062178,9.002e-05,2]
[348734663,1736761831571,-217.61123608,9.021e-05,2]
[348734664,1736761831589,-392.26945912,9.021e-05,2]
[348734665,1736761831600,-213.1993048,9.021e-05,2]
[348734666,1736761831610,-200.0,9.025e-05,2]
[348734667,1736761831619,-1227.84497986,9.053e-05,2]
[348734668,1736761831637,-550.0,9.053e-05,2]
[348734669,1736761831688,-1423.41579983,9.053e-05,2]
[348734670,1736761831698,-250.0,9.053e-05,2]
[348734671,1736761831707,-300.0,9.171e-05,2]
[348734672,1736761831717,-15297.67089659,9.172e-05,2]
[348734673,1736761831727,-280.0,9.172e-05,2]
[348734674,1736761831797,-3361.16061818,9.172e-05,2]
[348734675,1736761831827,-4961.16848523,9.172e-05,2]
[348734676,1736761831836,-150.0,9.53e-05,2]
[348734677,1736761831845,-1183.11951482,9.531e-05,2]
[348734678,1736761831856,-478.31588386,9.531e-05,2]
[348734679,1736761831882,-285.93200025,9.531e-05,2]
[348734680,1736761831911,-1940.71460107,9.531e-05,2]
[348734681,1736761831920,-316.32508809,9.531e-05,2]
[348734682,1736761831931,-8.41291191,9.531e-05,2]
[348734683,1736761831940,-500.0,9.531e-05,2]
[348734684,1736761831950,-388.9460717,9.531e-05,2]
[348734685,1736761831961,-990.9539283,9.531e-05,2]
[348734686,1736761831972,-500.0,9.531e-05,2]
[348734687,1736761831982,-769.93,9.531e-05,2]
[348734688,1736761831992,-684.37,9.531e-05,2]
[348734689,1736761832001,-104.63062045,9.531e-05,2]
[348734738,1736761837391,-395.36937955,9.531e-05,2]
[348734739,1736761837403,-1000.0,9.531e-05,2]
[348734740,1736761837414,-845.21,9.531e-05,2]
[348734741,1736761837424,-500.0,9.531e-05,2]
[348734742,1736761837434,-500.0,9.531e-05,2]
[348734743,1736761837443,-1322.65,9.531e-05,2]
[348734744,1736761837453,-763.0,9.594e-05,2]
[348734745,1736761837464,-24039.1952,9.705e-05,2]
[348734746,1736761837474,-492.516,9.705e-05,2]
[348734747,1736761837484,-176.63,9.766e-05,2]
[348734748,1736761837492,-955.35,9.805e-05,2]
[348734749,1736761837502,-642.69,9.805e-05,2]
[348734750,1736761837511,-1777.06,9.805e-05,2]
[348734751,1736761837520,-908.8,9.805e-05,2]
[348734752,1736761837530,-1687.85,9.805e-05,2]
[348734753,1736761837539,-2401.64,9.805e-05,2]
[348734754,1736761837549,-500.0,9.805e-05,2]
[348734755,1736761837558,-1426.96,9.805e-05,2]
[348734756,1736761837568,-2048.15,9.805e-05,2]
[348734757,1736761837577,-500.0,9.805e-05,2]
[348734758,1736761837587,-837.66,9.805e-05,2]
[348734759,1736761837596,-500.0,9.805e-05,2]
[348734760,1736761837607,-525.28,9.805e-05,2]
[348734761,1736761837616,-500.0,9.805e-05,2]
[348734762,1736761837626,-541.5,9.805e-05,2]
[348734763,1736761837636,-699.18,9.805e-05,2]
[348734764,1736761837646,-1379.9,9.805e-05,2]
[348734765,1736761837655,-919.64,9.805e-05,2]
[348734766,1736761837666,-500.0,9.805e-05,2]
[348734767,1736761837675,-769.93,9.805e-05,2]
[348734768,1736761837683,-795.89,9.805e-05,2]
[348734769,1736761837692,-684.37,9.805e-05,2]
[348734770,1736761837701,-1852.72,9.805e-05,2]
[348734771,1736761837710,-500.0,9.805e-05,2]
[348734772,1736761837720,-819.6,9.805e-05,2]
[348734773,1736761837730,-845.21,9.805e-05,2]
[348734775,1736761837739,-500.0,9.805e-05,2]
[348734777,1736761837748,-1264.6,9.805e-05,2]
[348734779,1736761837757,-500.0,9.805e-05,2]
[348734781,1736761837766,-1322.65,9.805e-05,2]
[348734783,1736761837775,-706.73,9.805e-05,2]
[348734785,1736761837784,-1105.1163,9.9e-05,2]
[348734787,1736761837794,-75736.8373,9.9e-05,2]
[348734789,1736761837805,-1755.0573,9.9e-05,2]
[348734791,1736761837814,-155.94419477,9.9e-05,2]
[348734793,1736761837823,-649.05730035,9.907e-05,2]
[348734795,1736761837832,-1048.22640813,9.973e-05,2]
[348734797,1736761837841,-1048.22640813,9.976e-05,2]
[348734799,1736761837850,-1048.22640813,9.98e-05,2]
[348734801,1736761837860,-1048.22640813,9.982e-05,2]
[348734803,1736761837869,-1048.22640813,9.983e-05,2]
[348734805,1736761837878,-675.66,9.985e-05,2]
[348734807,1736761837888,-563.04,9.985e-05,2]
[348734809,1736761837897,-500.0,9.985e-05,2]
[348734811,1736761837907,-815.19,9.985e-05,2]
[348734813,1736761837915,-500.0,9.985e-05,2]
[348734814,1736761837924,-1371.92,9.985e-05,2]
[348734816,1736761837934,-739.21,9.985e-05,2]
[348734819,1736761837943,-500.0,9.985e-05,2]
[348734821,1736761837953,-934.74,9.985e-05,2]
[348734822,1736761837963,-500.0,9.985e-05,2]
[348734824,1736761837974,-540.02,9.985e-05,2]
[348734826,1736761837984,-500.0,9.985e-05,2]
[348734828,1736761837994,-1829.77,9.985e-05,2]
[348734830,1736761838003,-500.0,9.985e-05,2]
[348734833,1736761838013,-500.0,9.985e-05,2]
[348734834,1736761838022,-523.09,9.985e-05,2]
[348734836,1736761838032,-500.0,9.985e-05,2]
[348734838,1736761838041,-500.0,9.985e-05,2]
[348734840,1736761838050,-895.44,9.985e-05,2]
[348734842,1736761838059,-500.0,9.985e-05,2]
[348734844,1736761838069,-500.0,9.985e-05,2]
[348734846,1736761838078,-1572.97,9.985e-05,2]
[348734848,1736761838087,-500.0,9.985e-05,2]
[348734850,1736761838096,-500.0,9.985e-05,2]
[348734852,1736761838107,-500.0,9.985e-05,2]
[348734854,1736761838117,-500.0,9.985e-05,2]
[348734856,1736761838126,-500.0,9.985e-05,2]
[348734858,1736761838136,-500.0,9.985e-05,2]
[348734860,1736761838145,-1668.66,9.985e-05,2]
[348734862,1736761838155,-500.0,9.985e-05,2]
[348734864,1736761838164,-956.53,9.985e-05,2]
[348734866,1736761838174,-500.0,9.985e-05,2]
[348734868,1736761838183,-506.28796639,9.985e-05,2]
[348734870,1736761838192,-500.0,9.985e-05,2]
[348734872,1736761838201,-703.64,9.985e-05,2]
[348734874,1736761838212,-500.0,9.986e-05,2]
[348734876,1736761838224,-500.0,9.986e-05,2]
[348734877,1736761838234,-501.13411333,9.986e-05,2]
[348734879,1736761838243,-500.0,9.986e-05,2]
[348734881,1736761838254,-500.0,9.986e-05,2]
[348734883,1736761838263,-500.0,9.986e-05,2]
[348734886,1736761838273,-500.0,9.986e-05,2]
[348734887,1736761838282,-500.0,9.986e-05,2]
[348734890,1736761838293,-500.0,9.986e-05,2]
[348734892,1736761838302,-500.0,9.986e-05,2]
[348734894,1736761838312,-562.73,9.986e-05,2]
[348734895,1736761838322,-501.16790683,9.986e-05,2]
[348734897,1736761838331,-500.0,9.986e-05,2]
[348734899,1736761838340,-500.0,9.986e-05,2]
[348734901,1736761838350,-500.0,9.986e-05,2]
[348734903,1736761838359,-500.0,9.986e-05,2]
[348734905,1736761838368,-508.06,9.986e-05,2]
[348734907,1736761838378,-500.0,9.986e-05,2]
[348734909,1736761838387,-500.0,9.986e-05,2]
[348734911,1736761838396,-500.0,9.986e-05,2]
[348734913,1736761838406,-500.0,9.986e-05,2]
[348734915,1736761838415,-500.0,9.986e-05,2]
[348734917,1736761838424,-500.0,9.986e-05,2]
[348734919,1736761838434,-500.0,9.986e-05,2]
[348734921,1736761838443,-500.0,9.986e-05,2]
[348734923,1736761838452,-500.0,9.986e-05,2]
[348734925,1736761838461,-308.30372326,9.986e-05,2]
[348734926,1736761838471,-503.58065851,9.986e-05,2]
[348734928,1736761838480,-500.0,9.986e-05,2]
[348734930,1736761838490,-500.0,9.986e-05,2]
[348734932,1736761838499,-500.0,9.986e-05,2]
[348734933,1736761838508,-500.0,9.986e-05,2]
[348734934,1736761838517,-500.0,9.986e-05,2]
[348734935,1736761838526,-501.87598172,9.986e-05,2]
[348734936,1736761838535,-500.0,9.986e-05,2]
[348734937,1736761838544,-500.0,9.986e-05,2]
[348734938,1736761838553,-500.0,9.986e-05,2]
[348734939,1736761838562,-500.0,9.986e-05,2]
[348734940,1736761838572,-500.0,9.986e-05,2]
[348734941,1736761838581,-500.0,9.986e-05,2]
[348734942,1736761838592,-500.0,9.986e-05,2]
[348734943,1736761838601,-500.0,9.986e-05,2]
[348734944,1736761838610,-500.0,9.986e-05,2]
[348734945,1736761838620,-500.0,9.986e-05,2]
[348734947,1736761838629,-500.0,9.986e-05,2]
[348734948,1736761838638,-500.0,9.986e-05,2]
[348734950,1736761838647,-500.0,9.986e-05,2]
[348734951,1736761838656,-453.82927665,9.986e-05,2]
[348734952,1736761838665,-500.0,9.986e-05,2]
[348734953,1736761838674,-500.0,9.986e-05,2]
[348734954,1736761838683,-500.0,9.986e-05,2]
[348734955,1736761838692,-255.68318928,9.986e-05,2]
[348734956,1736761838702,-500.0,9.986e-05,2]
[348734957,1736761838711,-500.0,9.986e-05,2]
[348734958,1736761838721,-500.0,9.986e-05,2]
[348734959,1736761838730,-500.0,9.986e-05,2]
[348734960,1736761838739,-500.0,9.986e-05,2]
[348734961,1736761838748,-500.0,9.986e-05,2]
[348734962,1736761838758,-500.0,9.986e-05,2]
[348734963,1736761838767,-500.0,9.986e-05,2]
[348734964,1736761838776,-500.0,9.986e-05,2]
[348734965,1736761838785,-500.0,9.986e-05,2]
[348734966,1736761838795,-500.0,9.986e-05,2]
[348734967,1736761838805,-500.0,9.986e-05,2]
[348734968,1736761838815,-500.0,9.986e-05,2]
[348734969,1736761838824,-500.0,9.986e-05,2]
[348734970,1736761838833,-500.0,9.986e-05,2]
[348734971,1736761838843,-500.0,9.986e-05,2]
[348734972,1736761839072,-500.0,9.986e-05,2]
[348734973,1736761839082,-500.0,9.986e-05,2]
[348734974,1736761839092,-500.0,9.986e-05,2]
[348734975,1736761839101,-500.0,9.986e-05,2]
[348734976,1736761839111,-500.0,9.986e-05,2]
[348734977,1736761839122,-500.0,9.986e-05,2]
[348734978,1736761839132,-500.0,9.986e-05,2]
[348734979,1736761839142,-500.0,9.986e-05,2]
[348734980,1736761839151,-500.0,9.986e-05,2]
[348734981,1736761839161,-500.0,9.986e-05,2]
[348734982,1736761839170,-500.0,9.986e-05,2]
[348734983,1736761839179,-500.0,9.986e-05,2]
[348734984,1736761839190,-500.0,9.986e-05,2]
[348734985,1736761839199,-500.0,9.986e-05,2]
[348734986,1736761839208,-500.0,9.986e-05,2]
[348734987,1736761839224,-233.97086197,9.986e-05,2]
[348734988,1736761839233,-500.0,9.986e-05,2]
[348734989,1736761839242,-500.0,9.986e-05,2]
[348734990,1736761839251,-500.0,9.986e-05,2]
[348734991,1736761839262,-553.37,9.986e-05,2]
[348734992,1736761839271,-500.0,9.986e-05,2]
[348734993,1736761839282,-500.0,9.986e-05,2]
[348734994,1736761839293,-500.0,9.986e-05,2]
[348734995,1736761839303,-217.48115896,9.986e-05,2]
[348734996,1736761839312,-500.0,9.986e-05,2]
[348734997,1736761839322,-500.0,9.986e-05,2]
[348734998,1736761839331,-500.80923196,9.986e-05,2]
[348734999,1736761839341,-500.0,9.986e-05,2]
[348735000,1736761839350,-500.0,9.986e-05,2]
[348735001,1736761839359,-500.0,9.986e-05,2]
[348735002,1736761839369,-500.0,9.986e-05,2]
[348735003,1736761839378,-500.0,9.986e-05,2]
[348735004,1736761839388,-500.0,9.986e-05,2]
[348735005,1736761839397,-500.0,9.986e-05,2]
[348735006,1736761839407,-500.0,9.986e-05,2]
[348735007,1736761839415,-500.0,9.986e-05,2]
[348735008,1736761839425,-502.63534614,9.986e-05,2]
[348735009,1736761839434,-500.0,9.986e-05,2]
[348735011,1736761839444,-500.0,9.986e-05,2]
[348735013,1736761839453,-500.0,9.986e-05,2]
[348735014,1736761839463,-500.0,9.986e-05,2]
[348735015,1736761839476,-500.0,9.986e-05,2]
[348735016,1736761839486,-500.0,9.986e-05,2]
[348735017,1736761839495,-500.0,9.986e-05,2]
[348735018,1736761839505,-500.0,9.986e-05,2]
[348735019,1736761839515,-500.0,9.986e-05,2]
[348735020,1736761839525,-514.93,9.986e-05,2]
[348735021,1736761839535,-500.0,9.986e-05,2]
[348735023,1736761839544,-500.0,9.986e-05,2]
[348735025,1736761839554,-500.0,9.986e-05,2]
[348735026,1736761839563,-500.0,9.986e-05,2]
[348735027,1736761839573,-500.0,9.986e-05,2]
[348735028,1736761839583,-500.0,9.986e-05,2]
[348735029,1736761839592,-500.0,9.986e-05,2]
[348735030,1736761839602,-500.0,9.986e-05,2]
[348735031,1736761839612,-500.0,9.986e-05,2]
[348735032,1736761839622,-500.0,9.986e-05,2]
[348735033,1736761839631,-500.0,9.986e-05,2]
[348735034,1736761839641,-500.0,9.986e-05,2]
[348735035,1736761839651,-500.0,9.986e-05,2]
[348735036,1736761839661,-500.0,9.986e-05,2]
[348735037,1736761839670,-500.0,9.986e-05,2]
[348735038,1736761839679,-500.0,9.986e-05,2]
[348735039,1736761839690,-500.0,9.986e-05,2]
[348735040,1736761839699,-500.0,9.986e-05,2]
[348735041,1736761839709,-500.0,9.986e-05,2]
[348735042,1736761839722,-500.0,9.986e-05,2]
[348735043,1736761839732,-500.0,9.986e-05,2]
[348735044,1736761839741,-623.8502332,9.986e-05,2]
[348735045,1736761839750,-242.00151479,9.986e-05,2]
[348735046,1736761839760,-500.0,9.986e-05,2]
[348735047,1736761839769,-643.01152191,9.986e-05,2]
[348735048,1736761839779,-500.0,9.986e-05,2]
[348735049,1736761839788,-609.36,9.986e-05,2]
[348735050,1736761839798,-500.0,9.986e-05,2]
[348735051,1736761839807,-500.0,9.986e-05,2]
[348735052,1736761839816,-500.0,9.986e-05,2]
[348735053,1736761839825,-906.014611,9.986e-05,2]
[348735054,1736761839834,-500.0,9.986e-05,2]
[348735055,1736761839843,-500.0,9.986e-05,2]
[348735056,1736761839852,-500.8229078,9.986e-05,2]
[348735057,1736761839862,-399.799879,9.986e-05,2]
[348735058,1736761839871,-500.0,9.986e-05,2]
[348735059,1736761839880,-500.0,9.986e-05,2]
[348735060,1736761839890,-500.0,9.986e-05,2]
[348735061,1736761839899,-500.0,9.986e-05,2]
[348735062,1736761839909,-500.0,9.986e-05,2]
[348735063,1736761839918,-500.0,9.986e-05,2]
[348735064,1736761839927,-500.0,9.986e-05,2]
[348735065,1736761839936,-754.089611,9.986e-05,2]
[348735066,1736761839945,-500.0,9.986e-05,2]
[348735067,1736761839955,-500.0,9.986e-05,2]
[348735068,1736761839964,-500.0,9.986e-05,2]
[348735069,1736761839975,-500.0,9.986e-05,2]
[348735070,1736761839985,-500.0,9.986e-05,2]
[348735071,1736761839994,-633.88694315,9.986e-05,2]
[348735072,1736761840003,-500.0,9.986e-05,2]
[348735073,1736761840012,-500.0,9.986e-05,2]
[348735074,1736761840022,-500.0,9.986e-05,2]
[348735075,1736761840031,-500.0,9.986e-05,2]
[348735076,1736761840041,-173.594065,9.986e-05,2]
[348735077,1736761840050,-500.0,9.986e-05,2]
[348735078,1736761840060,-500.0,9.986e-05,2]
[348735079,1736761840069,-500.0,9.986e-05,2]
[348735080,1736761840078,-500.0,9.986e-05,2]
[348735081,1736761840087,-163.74258,9.986e-05,2]
[348735082,1736761840097,-500.0,9.986e-05,2]
[348735083,1736761840106,-500.0,9.986e-05,2]
[348735084,1736761840116,-500.0,9.986e-05,2]
[348735085,1736761840125,-500.0,9.986e-05,2]
[348735086,1736761840134,-500.0,9.986e-05,2]
[348735087,1736761840143,-500.0,9.986e-05,2]
[348735088,1736761840152,-500.0,9.986e-05,2]
[348735089,1736761840161,-500.0,9.986e-05,2]
[348735090,1736761840170,-500.0,9.986e-05,2]
[348735091,1736761840179,-500.0,9.986e-05,2]
[348735092,1736761840188,-500.0,9.986e-05,2]
[348735093,1736761840197,-500.0,9.986e-05,2]
[348735094,1736761840206,-500.0,9.986e-05,2]
[348735095,1736761840217,-500.0,9.986e-05,2]
[348735096,1736761840229,-500.0,9.986e-05,2]
[348735097,1736761840238,-500.0,9.986e-05,2]
[348735098,1736761840247,-500.0,9.986e-05,2]
[348735099,1736761840256,-500.0,9.986e-05,2]
[348735100,1736761840266,-500.0,9.986e-05,2]
[348735101,1736761840275,-500.0,9.986e-05,2]
[348735102,1736761840285,-500.0,9.986e-05,2]
[348735103,1736761840295,-500.0,9.986e-05,2]
[348735104,1736761840304,-500.0,9.986e-05,2]
[348735105,1736761840313,-500.0,9.986e-05,2]
[348735106,1736761840322,-500.0,9.986e-05,2]
[348735107,1736761840331,-500.0,9.986e-05,2]
[348735108,1736761840341,-500.0,9.986e-05,2]
[348735109,1736761840350,-500.0,9.986e-05,2]
[348735110,1736761840359,-500.0,9.986e-05,2]
[348735111,1736761840368,-500.0,9.986e-05,2]
[348735112,1736761840378,-500.0,9.986e-05,2]
[348735113,1736761840387,-500.0,9.986e-05,2]
[348735114,1736761840397,-500.0,9.986e-05,2]
[348735115,1736761840406,-500.0,9.986e-05,2]
[348735117,1736761840415,-500.0,9.986e-05,2]
[348735118,1736761840424,-500.0,9.986e-05,2]
[348735119,1736761840434,-500.0,9.986e-05,2]
[348735120,1736761840443,-500.0,9.986e-05,2]
[348735121,1736761840452,-500.0,9.986e-05,2]
[348735122,1736761840461,-500.0007989,9.986e-05,2]
[348735123,1736761840470,-500.0,9.986e-05,2]
[348735124,1736761840481,-500.0,9.986e-05,2]
[348735125,1736761840490,-500.0,9.986e-05,2]
[348735126,1736761840499,-500.0,9.986e-05,2]
[348735127,1736761840508,-500.0,9.986e-05,2]
[348735128,1736761840517,-500.0,9.986e-05,2]
[348735129,1736761840526,-500.0,9.986e-05,2]
[348735130,1736761840535,-500.0,9.986e-05,2]
[348735131,1736761840544,-500.0,9.986e-05,2]
[348735132,1736761840554,-500.0,9.986e-05,2]
[348735133,1736761840563,-500.0,9.986e-05,2]
[348735134,1736761840572,-621.29385066,9.986e-05,2]
[348735135,1736761840581,-500.0,9.986e-05,2]
[348735136,1736761840591,-500.0,9.986e-05,2]
[348735137,1736761840601,-500.0,9.986e-05,2]
[348735138,1736761840610,-500.0,9.986e-05,2]
[348735139,1736761840620,-500.0,9.986e-05,2]
[348735140,1736761840629,-500.0,9.986e-05,2]
[348735141,1736761840638,-500.0,9.986e-05,2]
[348735142,1736761840647,-500.0,9.986e-05,2]
[348735143,1736761840656,-500.0,9.986e-05,2]
[348735144,1736761840665,-500.0,9.986e-05,2]